Cogmind - Beta 12 @@@ ROGUE MODE // 2023.09.08 @ 19:16:38 Player: Chaussettes Result: Self-destructed Performance ------------- Evolutions (2) 1000 Regions Visited (4) 800 Robots Destroyed (37) 185 Value Destroyed (1251) 1251 Prototype IDs (3) 60 Alien Tech Used (0) 0 Bonus (0) 0 TOTAL SCORE: 3296 Bonus ------- None Cogmind --------- Core Integrity 404/550 Matter 295/300 Energy 2/350 System Corruption 0% Temperature Cool (-91) Movement Walking (200) Ox1 Location -8/Storage Parts ------- > --- POWER (1) -------- (None) > --- PROPULSION (3) --- Titanium Leg > --- UTILITY (4) ------ Cryofiber Web Cooling System Small Storage Unit High-capacity Battery > --- WEAPON (3) ------- Advanced Beam Rifle Particle Cannon > --- INVENTORY (8) ---- Aluminum Leg Cooling System Weight Redist. System Improved Sensor Array Improved Signal Interpreter Peak State ------------ > --- POWER ------------ Improved Ion Engine > --- PROPULSION ------- Carbon-fiber Leg Titanium Leg Titanium Leg > --- UTILITY ---------- Cryofiber Web Cooling System Small Storage Unit High-capacity Battery > --- WEAPON ----------- Particle Gun Pulse Rifle Beam Cannon > --- INVENTORY -------- Aluminum Leg Cooling System Weight Redist. System Improved Sensor Array Improved Signal Interpreter Pulse Rifle Advanced Beam Rifle Particle Cannon [Rating: 26] Favorites ----------- Power Improved Ion Engine Engine Improved Ion Engine Propulsion Aluminum Leg Leg Aluminum Leg Utility Small Storage Unit Device Cooling System Storage Small Storage Unit Processor Targeting Computer Weapon Beam Cannon Energy Gun Medium Laser Energy Cannon Beam Cannon Build | -11 -10 -9 -8 -8 ------- Run | Jun Mat Mat Mat Sto Slots Evolved 4 | . . 2 2 . Power . | . . . . . Propulsion 1 | . . . 1 . Utility 2 | . . 1 1 . Weapon 1 | . . 1 . . Parts Attached 33 | 6 2 10 8 7 Power 4 | 1 1 . 2 . Engine 4 | 1 1 . 2 . Core . | . . . . . Reactor . | . . . . . Propulsion 10 | 2 . 4 3 1 Treads . | . . . . . Leg 10 | 2 . 4 3 1 Wheel . | . . . . . Hover . | . . . . . Flight . | . . . . . Utility 9 | 1 1 3 2 2 Device 3 | . 1 1 . 1 Storage 4 | 1 . 1 2 . Processor 2 | . . 1 . 1 Hackware . | . . . . . Protection . | . . . . . Artifact . | . . . . . Weapon 10 | 2 . 3 1 4 Energy Gun 7 | 2 . 1 1 3 Energy Cannon 3 | . . 2 . 1 Ballistic Gun . | . . . . . Ballistic Cannon . | . . . . . Launcher . | . . . . . Special Weapon . | . . . . . Impact Weapon . | . . . . . Slashing Weapon . | . . . . . Piercing Weapon . | . . . . . Special Melee Weapon . | . . . . . Unidentified Prototypes 1 | . . . . 1 Parts Lost 8 | . . . . 8 Power 1 | . . . . 1 Propulsion 2 | . . . . 2 Utility . | . . . . . Weapon 5 | . . . . 5 Highest Loss Streak 7 | . . . . 7 To Critical Strikes . | . . . . . Average Slot Usage (%) 96 | . 93 97 100 96 Engine 10 | . 14 11 9 7 Leg 24 | . 28 21 27 26 Device 10 | . 7 11 9 15 Storage 13 | . 14 11 18 18 Processor 6 | . . 8 9 2 Energy Gun 21 | . 28 22 18 16 Energy Cannon 8 | . . 10 9 8 Naked Turns . | . . . . . Heaviest Build 28 | 13 16 24 27 28 Greatest Support 49 | 20 20 20 42 49 Greatest Overweight (x) 1 | . . 1 . . Average Overweight (x) . | . . . . . Largest Inventory Capacity 8 | 8 8 8 8 8 Average Capacity 7 | 6 8 8 8 8 Most Carried 8 | 2 8 8 8 8 Average Carried 7 | 1 6 7 7 7 Final Capacity 8 | 8 8 8 8 8 Final Carried 8 | 2 8 8 8 5 Class Distribution -------------------- 79% | Gunner 20% | Mutant Dominant Class ---------------- Mutant | -10/Materials Gunner | -9/Materials Gunner | -8/Materials Gunner | -8/Storage Resources | -11 -10 -9 -8 -8 ----------- Run | Jun Mat Mat Mat Sto Matter Collected 495 | 260 20 100 80 35 Remotely . | . . . . . Salvage Created 1457 | . 234 661 274 288 Parts 79 | . 13 41 10 15 Haulers Intercepted 1 | . . 1 . . Recyclers Shooed 1 | . . 1 . . Parts Field Recycled . | . . . . . Retrieved Matter . | . . . . . Parts Self-Destructed . | . . . . . Prevented . | . . . . . Kills | -11 -10 -9 -8 -8 ------- Run | Jun Mat Mat Mat Sto Combat Hostiles Destroyed 27 | . 6 11 5 5 Guns 14 | . 6 5 1 2 Cannons 11 | . . 6 3 2 Classes Destroyed 8 | . 3 3 1 1 Worker 1 | . . . 1 . Hauler 1 | . . 1 . . Watcher 8 | . 1 4 1 2 Swarmer 2 | . 2 . . . Grunt 14 | . 4 5 3 2 Brawler 1 | . . 1 . . Sentry 9 | . . 5 2 2 Hunter 1 | . . . . 1 Best Kill Streak 4 | . 2 3 3 4 Combat Bots Only 3 | . 2 3 3 2 Max Kills in Single Turn 2 | . 1 1 2 1 Gunslinging . | . . . . . Exploded . | . . . . . Melee . | . . . . . Uniques/NPCs Destroyed . | . . . . . Combat | -11 -10 -9 -8 -8 -------- Run | Jun Mat Mat Mat Sto Damage Taken 1586 | . 243 190 281 872 Core 189 | . 43 . 63 83 Absorbed by Shields . | . . . . . Regen/Repaired (Parts) 53 | . . 53 . . Core Remaining (%) 94 | 100 82 100 . . Volleys Fired 118 | . 30 49 14 25 Largest 3 | . 2 3 3 3 Hottest 192 | . 90 175 188 192 Shots Fired 295 | . 60 132 42 61 Gun 207 | . 60 83 28 36 Cannon 88 | . . 49 14 25 Launcher . | . . . . . Special . | . . . . . Kinetic . | . . . . . Thermal 295 | . 60 132 42 61 Explosive . | . . . . . Electromagnetic . | . . . . . Robot Hit Streak 11 | . 8 10 11 8 Robot Miss Streak 8 | . 8 4 3 4 Penetration Max . | . . . . . Secondary Targets . | . . . . . Shots Hit Robots 154 | . 26 60 29 39 Core Hits 66 | . 13 25 13 15 Critical Kills . | . . . . . Critical Parts Destroyed . | . . . . . Critical Strikes 7 | . 2 2 2 1 Burn 7 | . 2 2 2 1 Melee Attacks . | . . . . . Impact . | . . . . . Slashing . | . . . . . Piercing . | . . . . . Sneak Attacks . | . . . . . Combat Hostiles . | . . . . . Follow-up Attacks . | . . . . . Damage Inflicted 2473 | . 318 928 544 683 Guns 1621 | . 316 529 389 387 Cannons 850 | . . 399 155 296 Explosions . | . . . . . Melee . | . . . . . Ramming 2 | . 2 . . . Kinetic . | . . . . . Thermal 2471 | . 316 928 544 683 Explosive . | . . . . . Electromagnetic . | . . . . . Impact . | . . . . . Slashing . | . . . . . Piercing . | . . . . . Highest Corruption . | . . . . . Average Corruption . | . . . . . Corruption Purged . | . . . . . Corruption Blocked . | . . . . . Overload Shots . | . . . . . Overflow Damage 7 | . . 7 . . Projectiles 7 | . . 7 . . Explosions . | . . . . . Melee . | . . . . . Knockbacks . | . . . . . Impact . | . . . . . Kinetic . | . . . . . Secondary . | . . . . . Self-Inflicted Damage . | . . . . . Shots . | . . . . . Rammed . | . . . . . Targets Rammed 1 | . 1 . . . Kicked 1 | . 1 . . . Crushed . | . . . . . Highest Temperature 318 | . 273 208 295 318 Average Temperature 94 | . 117 64 108 115 Received Heat Transfer 777 | . 114 60 180 423 Effects 2 | . . . 2 . Energy Bleed 2 | . . . 2 . Siege Activations . | . . . . . Robots Corrupted . | . . . . . Combat Hostiles . | . . . . . Parts Fried . | . . . . . Impact Corruptions . | . . . . . Robots Melted 2 | . . . 1 1 Combat Hostiles 2 | . . . 1 1 Parts Melted 13 | . 1 3 4 5 Heat Transferred 6271 | . 966 2419 1369 1517 Parts Sabotaged . | . . . . . Parts Stolen . | . . . . . Parts Stripped . | . . . . . Power Chain Reactions . | . . . . . Missiles Intercepted . | . . . . . Alert | -11 -10 -9 -8 -8 ------- Run | Jun Mat Mat Mat Sto Peak Influence 292 | . 207 221 292 292 Initial 122 | . . 87 75 122 Average 111 | . 99 92 137 228 Maximum Alert Level 1 | . 1 1 1 1 Low Security (%) 85 | 100 90 97 77 25 Level 1 14 | . 9 2 22 74 Level 2 . | . . . . . Level 3 . | . . . . . Level 4 . | . . . . . Level 5 . | . . . . . High Security . | . . . . . Max Security . | . . . . . Squads Dispatched 3 | . 2 1 . . Investigation 1 | . 1 . . . Extermination . | . . . . . Reinforcement 2 | . 1 1 . . Assault . | . . . . . Garrison . | . . . . . Intercept . | . . . . . Searches Triggered . | . . . . . Construction Impeded . | . . . . . Haulers Reinforced . | . . . . . Active Scanning Responses . | . . . . . Cargo Convoy Interrupts . | . . . . . Stealth | -11 -10 -9 -8 -8 --------- Run | Jun Mat Mat Mat Sto Distress Signals 2 | . . 2 . . Communications Jammed . | . . . . . Distress Signals . | . . . . . Times Spotted 46 | . 9 20 7 10 Peak Tracking Total 6 | . 2 3 3 6 Tactical Retreats . | . . . . . Traps | -11 -10 -9 -8 -8 ------- Run | Jun Mat Mat Mat Sto Traps Triggered 3 | . 1 . . 2 Indirectly . | . . . . . Trap Hack Attempts . | . . . . . Triggered . | . . . . . Disarmed . | . . . . . Reprogrammed . | . . . . . Reused . | . . . . . Traps Extracted . | . . . . . Installed . | . . . . . Triggered . | . . . . . Machines | -11 -10 -9 -8 -8 ---------- Run | Jun Mat Mat Mat Sto Machines Disabled 2 | . . . 1 1 Max in Single Turn 1 | . . . 1 1 Machines Repaired . | . . . . . Machines Sabotaged . | . . . . . Overloaded Fab Kills . | . . . . . Hacking | -11 -10 -9 -8 -8 --------- Run | Jun Mat Mat Mat Sto Machines Accessed 11 | . 3 6 2 . Terminals 7 | . 2 4 1 . Fabricators . | . . . . . Repair Stations 3 | . 1 1 1 . Recycling Units 1 | . . 1 . . Scanalyzers . | . . . . . Garrison Access . | . . . . . Total Hacks 25 | . 6 16 3 . Successful 11 | . 2 8 1 . Failed 14 | . 4 8 2 . Catastrophic 1 | . . . 1 . Database Lockouts . | . . . . . Manual . | . . . . . Terminals 17 | . 4 11 2 . Fabricators . | . . . . . Repair Stations 7 | . 2 4 1 . Recycling Units 1 | . . 1 . . Scanalyzers . | . . . . . Garrison Access . | . . . . . Terminal Hacks 8 | . 2 5 1 . Prototype ID Bank 1 | . 1 . . . Emergency Access Points 1 | . . 1 . . Alert Level 2 | . 1 . 1 . Dispatch Records 1 | . . 1 . . Maintenance Status 1 | . . 1 . . Hauler Manifests 1 | . . 1 . . Zone Layout 1 | . . 1 . . Fabricator Hacks . | . . . . . Repair Station Hacks 2 | . . 2 . . Scan Component 1 | . . 1 . . Repair 1 | . . 1 . . Recycling Unit Hacks 1 | . . 1 . . Report Inventory 1 | . . 1 . . Scanalyzer . | . . . . . Garrison Access Hacks . | . . . . . Unauthorized Hacks . | . . . . . Terminals . | . . . . . Fabricators . | . . . . . Repair Stations . | . . . . . Recycling Units . | . . . . . Scanalyzers . | . . . . . Garrison Access . | . . . . . Data Cores Recovered . | . . . . . Used . | . . . . . Hacking Detections 9 | . 3 4 2 . Full Trace Events . | . . . . . Feedback Events . | . . . . . Feedback Blocked . | . . . . . Robot Schematics Acquired . | . . . . . Robots Built . | . . . . . Authchips . | . . . . . Time . | . . . . . Total Robot Build Rating . | . . . . . Part Schematics Acquired . | . . . . . Parts Built . | . . . . . Authchips . | . . . . . Time . | . . . . . Total Part Build Rating . | . . . . . Parts Repaired 1 | . . 1 . . Time 13 | . . 13 . . Parts Recycled . | . . . . . Recycled Matter . | . . . . . Retrieved Matter . | . . . . . Retrieved Components . | . . . . . Parts Scanalyzed . | . . . . . Part Schematics Acquired . | . . . . . Parts Damaged . | . . . . . Bothacking | -11 -10 -9 -8 -8 ------------ Run | Jun Mat Mat Mat Sto Used RIF Installer . | . . . . . Robots Hacked . | . . . . . Non-combat . | . . . . . Combat . | . . . . . Robot Hacks Applied . | . . . . . Relay Couplers Released . | . . . . . Fabnet Peak Effective % . | . . . . . Robots Rewired . | . . . . . Allies Hacked . | . . . . . Hacks Repelled . | . . . . . Allies | -11 -10 -9 -8 -8 -------- Run | Jun Mat Mat Mat Sto Total Allies . | . . . . . Largest Group . | . . . . . Highest-Rated Group . | . . . . . Highest-Rated Ally . | . . . . . Total Orders . | . . . . . Ally Attacks . | . . . . . Total Damage . | . . . . . Kills . | . . . . . Allies Corrupted . | . . . . . Allies Melted . | . . . . . Intel | -11 -10 -9 -8 -8 ------- Run | Jun Mat Mat Mat Sto Robot Analysis Total . | . . . . . Derelict Logs Recovered . | . . . . . Drone Launches . | . . . . . Drone Recoveries . | . . . . . Exploration | -11 -10 -9 -8 -8 ------------- Run | Jun Mat Mat Mat Sto Turns Passed 2286 | 62 375 1262 363 224 Spaces Moved 1272 | 46 217 668 235 106 Core 5 | 5 . . . . Treads . | . . . . . Legs 1267 | 41 217 668 235 106 Wheels . | . . . . . Hover . | . . . . . Flight . | . . . . . Fastest Speed 50 | 50 120 120 120 123 Average Speed 137 | 112 120 152 122 124 Slowest Speed 190 | 120 120 190 123 130 Overloaded Moves . | . . . . . Propulsion Burnouts . | . . . . . Robots Hopped . | . . . . . Cave-ins Triggered . | . . . . . Exploration Rate (%) 26 | 4 37 53 22 16 Regions Visited 4 Branch Regions 1 Pre-discovered Areas . | . . . . . Known Exits Taken . | . . . . . Unknown Exits Taken 4 | 1 1 1 1 . Scrap Searched . | . . . . . Spaces Dug . | . . . . . Terrain Destroyed . | . . . . . Melee . | . . . . . Projectile . | . . . . . AOE . | . . . . . Terrain Rammed . | . . . . . Walls Destroyed . | . . . . . Machines Disabled . | . . . . . Actions | -11 -10 -9 -8 -8 --------- Run | Jun Mat Mat Mat Sto Total 1571 | 53 272 814 282 150 Wait 93 | . 10 61 13 9 Move 1268 | 45 216 667 234 106 Hop . | . . . . . Pick Up 27 | 2 9 10 5 1 Fast Attach 15 | 6 1 6 1 1 Attach 7 | . . 1 2 4 Detach 2 | . . 1 . 1 Swap 11 | . 1 3 5 2 Drop 29 | . 4 16 8 1 Fire 118 | . 30 49 14 25 Melee . | . . . . . Ram . | . . . . . Kick 1 | . 1 . . . Crush . | . . . . . Escape Stasis . | . . . . . Rewire . | . . . . . Trap . | . . . . . Miscellaneous . | . . . . . Route ------- -11/Junkyard -10/Materials -9/Materials (discovered 3 exits: *Mat x2 / [*Min]) -8/Materials -8/Storage History --------- Turn | Location | Event 3 | -11/Junkyard | Discovered new exit (range 16) 63 | -11/Junkyard | Entered Materials 140 | -10/Materials | Met 8R-AWN 313 | -10/Materials | Build established: Mutant 342 | -10/Materials | Discovered new exit (range 3) 438 | -10/Materials | Entered another Materials area 438 | -9/Materials | Evolved 2 slots: Utility x1, Weapon x1 663 | -9/Materials | Repaired Aluminum Leg 750 | -9/Materials | Build established: Gunner 1152 | -9/Materials | Discovered new exit (range 16) 1323 | -9/Materials | Discovered new exit (range 11) 1657 | -9/Materials | Discovered new exit (range 16) 1700 | -9/Materials | Entered another Materials area 1700 | -8/Materials | Evolved 2 slots: Propulsion x1, Utility x1 1957 | -8/Materials | Discovered new exit (range 16) 2063 | -8/Materials | Entered Storage 2287 | -8/Storage | Self-destructed Last Messages --------------- 02251_ G-47 Trooper critical meltdown. 02252_ R-06 Scavenger collects Lgt. Treads. 02253_ Critical hit (Burn: +37). 02255_ R-06 Scavenger collects Particle Gun. 02258_ K-01 Serf collects debris. 02259_ Beam Rifle destroyed. 02259_ Imp. Ion Engine destroyed. 02262_ Identified Adv. Beam Rifle. 02264_ G-47 Trooper heat damages Lgt. Nuclear Core, Aluminum Leg, Aluminum Leg. 02265_ K-01 Serf collects debris. 02265_ Lgt. Nuclear Core melted. 02265_ G-47 Trooper destroyed. 02265_ R-06 Scavenger collects Aluminum Leg. 02268_ Carbon-fiber Leg destroyed. 02269_ K-01 Serf collects debris. 02272_ Pulse Rifle destroyed. 02275_ K-01 Serf collects debris. 02280_ Titanium Leg destroyed. 02282_ K-01 Serf collects debris. Map ----- +----------------------------------------------------+ | ?????????????????????????????????????????????????? | | ?????????????????????????????????????????????????? | | ?????????????????????????????????????????????????? | | ?????????????????????????????????????????????????? | | ?????????????????????????????????????????????????? | | ?????????????????????????????????????????????????? | | ?????????????????????????????????????????????????? | | ?????????????????????????????????????????????????? | | ?????????????????????????????????????????????????? | | ?????????????????????????????????????????????????? | | ?????????????????????????????????????????????????? | | ?????????????????????????????????????????????????? | | ?????????????????????????????????????????????????? | | ????????????????????????????????????????????? ???? | | ????????????????????????##########??????????# #??? | | ???????????????????????? ??????????? #??? | | ????????????????????????? ???????????? #??? | | ????????????????????????? ?????????????? #??? | | ????????????????????######+######????????? #??? | | ????????????????????# #????????? #??? | | ????????????????????# % g ########## #??? | | ????????????????????#%%k""g"""" + #??? | | ???????????????????## """ """" # #??? | | ???????????????????# """ """" # #??? | | ???????????????????## """" + # | | ????????????????????# g @ # ##/#####?? | | ???????????????????############## # #?? | | ???????????????????# + / ! * #?? | | ???????????????????# """" ############ #?? | | ???????????????????# "!%"" #??????????# =#?? | | ???????????????????# "!!""" #??????????# #?? | | ???????????????????# """%%" #??????????# ! #?? | | ???????????????????# "" !" #??????????########?? | | ???????????????????# " "" #???????????????????? | | ????????????### ???# % #???????????????????? | | ???????? ####/####################?????? | | ?????????????# ! ?????? | | ?????????????# % %=%! #?????????? | | ?????????????# ! ! #?????????? | | ?????????????# ###########+##+#######????????? | | ?????????????#####????????# #????????? | | ??????????????????????????# """ """"" #????????? | | ??????????????????????????# """ """"" ?????????? | | ??????????????????????????# """ """"" #????????? | | ??????????????????????????# #????????? | | ??????????????????????????# #????????? | | ??????????????????????????###############????????? | | | | | | | +----------------------------------------------------+ Best States ------------- Heat Dissipation 53 Energy Generation 12 Energy Capacity 515 Matter Stores 300 Matter Capacity 300 Sight Range 16 Terrain Scan Density 10 Base Temperature (-) 100 Evasion (%) 55 Targeting Accuracy 8 Authchip Count 1 Item Schematics ----------------- None Robot Schematics ------------------ None Fabricated ------------ Nothing Alien Tech Used ----------------- None Achievements -------------- None Challenges ------------ None Game ------ Seed TransportMakeshiftInjector Manual? 0 Play Time 00:41:57 Cumulative 22.9 hours Start 2023.09.08 @ 18:30:23 End 2023.09.08 @ 19:16:38 Sessions 3 Manual Loads 0 Difficulty Rogue Special Mode None Game No. 94 Rogue 94 Adventurer 0 Explorer 0 Win Type - Total 0 Types 0/0/0/0/0/0/0/0/0 Lore% 10 Gallery% 22 Achievement% 18 Wizard Run 0 Options --------- ASCII 0 Keyboard 1 Movement Numpad Keybinds 0 Fullscreen 0 Font 14/X11Bold Map View 50x50 Tactical HUD 1 Map Filters NONE Filters NONE Steam 1 RUN: c54b59a4-0627-47d9-b36c-f3e5cd70ea01